[Event "Early-Titled-Tuesday-Blitz-January-30-2024"]
[Site "Chess.com"]
[Date "2024.01.30"]
[Round "10"]
[White "cristiano78"]
[Black "Sjakkerntobi"]
[Result "0-1"]
[WhiteElo "2296"]
[BlackElo "2521"]
[TimeControl "180+1"]
[EndTime "10:02:41 PST"]
[Termination "Sjakkerntobi won on time"]

1. d4 {[%clk 0:02:59.5]} 1... Nf6 {[%clk 0:03:00]} 2. c4 {[%clk 0:02:59.2]} 2...
e6 {[%clk 0:03:00.7]} 3. Nf3 {[%clk 0:02:58.8]} 3... c5 {[%clk 0:03:01.3]} 4. d5
{[%clk 0:02:57.8]} 4... exd5 {[%clk 0:03:02.2]} 5. cxd5 {[%clk 0:02:57.6]} 5...
d6 {[%clk 0:03:02.8]} 6. Nc3 {[%clk 0:02:58.2]} 6... g6 {[%clk 0:03:03.1]} 7. h3
{[%clk 0:02:58.4]} 7... Bg7 {[%clk 0:03:03.6]} 8. e4 {[%clk 0:02:58.6]} 8... O-O
{[%clk 0:03:03.1]} 9. Bd3 {[%clk 0:02:58.5]} 9... a6 {[%clk 0:03:02.7]} 10. a4
{[%clk 0:02:58.5]} 10... Re8 {[%clk 0:03:02.7]} 11. O-O {[%clk 0:02:56.8]} 11...
Nbd7 {[%clk 0:03:02.7]} 12. Re1 {[%clk 0:02:56.9]} 12... Rb8 {[%clk 0:02:58.4]}
13. Bf4 {[%clk 0:02:54.6]} 13... Qc7 {[%clk 0:02:58.1]} 14. Rc1 {[%clk
0:02:53.9]} 14... Nh5 {[%clk 0:02:57.9]} 15. Bh2 {[%clk 0:02:53]} 15... Ne5
{[%clk 0:02:58.3]} 16. Nxe5 {[%clk 0:02:52.3]} 16... Bxe5 {[%clk 0:02:59.2]} 17.
Be2 {[%clk 0:02:50.1]} 17... Bxh2+ {[%clk 0:02:57.6]} 18. Kxh2 {[%clk 0:02:49]}
18... Nf6 {[%clk 0:02:54.1]} 19. Bf3 {[%clk 0:02:42.3]} 19... b5 {[%clk
0:02:51.8]} 20. axb5 {[%clk 0:02:42.1]} 20... axb5 {[%clk 0:02:52.7]} 21. g3
{[%clk 0:02:41.9]} 21... b4 {[%clk 0:02:39.5]} 22. Nb1 {[%clk 0:02:40.7]} 22...
Bd7 {[%clk 0:02:25.8]} 23. Nd2 {[%clk 0:02:25.2]} 23... Bb5 {[%clk 0:02:25.8]}
24. Nc4 {[%clk 0:02:07.2]} 24... Bxc4 {[%clk 0:02:22.9]} 25. Rxc4 {[%clk
0:01:44.5]} 25... Nd7 {[%clk 0:02:22.9]} 26. Bg2 {[%clk 0:01:40.1]} 26... Nb6
{[%clk 0:02:22.1]} 27. Rc1 {[%clk 0:01:39.5]} 27... c4 {[%clk 0:02:21.7]} 28. f4
{[%clk 0:01:39.3]} 28... Qc5 {[%clk 0:02:21.9]} 29. Re2 {[%clk 0:01:36.8]} 29...
Ra8 {[%clk 0:02:12.1]} 30. Rec2 {[%clk 0:01:22.2]} 30... Ra2 {[%clk 0:02:06.8]}
31. Qe2 {[%clk 0:01:08.1]} 31... Qd4 {[%clk 0:01:20.7]} 32. Rd2 {[%clk
0:00:56.5]} 32... Qf6 {[%clk 0:01:17.8]} 33. Rxc4 {[%clk 0:00:49.5]} 33... Nxc4
{[%clk 0:01:17.2]} 34. Qxc4 {[%clk 0:00:48.1]} 34... Rxb2 {[%clk 0:01:17.7]} 35.
e5 {[%clk 0:00:45]} 35... Rxd2 {[%clk 0:01:17.3]} 36. exf6 {[%clk 0:00:43.4]}
36... Rb8 {[%clk 0:00:43.7]} 37. Qc1 {[%clk 0:00:25.8]} 37... Rf2 {[%clk
0:00:30.5]} 38. Kg1 {[%clk 0:00:25.2]} 38... Ra2 {[%clk 0:00:19]} 39. Qc7 {[%clk
0:00:17.6]} 39... Raa8 {[%clk 0:00:17.7]} 40. Qxd6 {[%clk 0:00:16.8]} 40... b3
{[%clk 0:00:18.1]} 41. Be4 {[%clk 0:00:16.9]} 41... b2 {[%clk 0:00:18.5]} 42.
Kf2 {[%clk 0:00:16.7]} 42... Re8 {[%clk 0:00:14.8]} 43. Bc2 {[%clk 0:00:13.2]}
43... Rac8 {[%clk 0:00:12.9]} 44. Bb1 {[%clk 0:00:13.1]} 44... Rc1 {[%clk
0:00:12.6]} 45. Ba2 {[%clk 0:00:13.1]} 45... Rc2+ {[%clk 0:00:07.8]} 46. Kf3
{[%clk 0:00:12.6]} 46... Rc3+ {[%clk 0:00:08.2]} 47. Kg4 {[%clk 0:00:12.7]}
47... h5+ {[%clk 0:00:06.1]} 48. Kg5 {[%clk 0:00:12.4]} 48... Kh7 {[%clk
0:00:06.7]} 49. Qd7 {[%clk 0:00:11.8]} 49... Rf8 {[%clk 0:00:04.4]} 50. d6
{[%clk 0:00:11.1]} 50... Rxg3+ {[%clk 0:00:04]} 51. Kh4 {[%clk 0:00:11.4]} 51...
Rf3 {[%clk 0:00:01.3]} 52. Bxf7 {[%clk 0:00:10.7]} 52... Kh6 {[%clk 0:00:02]}
53. Bxg6 {[%clk 0:00:10.3]} 53... Rxf4+ {[%clk 0:00:02.5]} 54. Kg3 {[%clk
0:00:10.6]} 54... Kxg6 {[%clk 0:00:02.4]} 55. Qg7+ {[%clk 0:00:10]} 55... Kf5
{[%clk 0:00:02.7]} 56. Qh7+ {[%clk 0:00:09.7]} 56... Ke5 {[%clk 0:00:03]} 0-1

[Event "Early-Titled-Tuesday-Blitz-January-30-2024"]
[Site "Chess.com"]
[Date "2024.01.30"]
[Round "10"]
[White "Cheer_Down"]
[Black "Doublekk14"]
[Result "0-1"]
[WhiteElo "2455"]
[BlackElo "2293"]
[TimeControl "180+1"]
[EndTime "10:02:42 PST"]
[Termination "Doublekk14 won by resignation"]

1. e4 {[%clk 0:03:00.9]} 1... c5 {[%clk 0:02:59.2]} 2. Nf3 {[%clk 0:03:00.6]}
2... e6 {[%clk 0:02:58.7]} 3. d4 {[%clk 0:03:00.5]} 3... cxd4 {[%clk 0:02:58.9]}
4. Nxd4 {[%clk 0:03:00.9]} 4... Nf6 {[%clk 0:02:59.8]} 5. Nc3 {[%clk 0:03:00.9]}
5... Nc6 {[%clk 0:03:00.1]} 6. Bf4 {[%clk 0:03:00.1]} 6... Bc5 {[%clk
0:02:55.6]} 7. Ndb5 {[%clk 0:02:57.2]} 7... O-O {[%clk 0:02:55.6]} 8. Bd6 {[%clk
0:02:51.9]} 8... Bxd6 {[%clk 0:02:50.7]} 9. Nxd6 {[%clk 0:02:52.2]} 9... Qb6
{[%clk 0:02:36]} 10. Rb1 {[%clk 0:02:39.8]} 10... a6 {[%clk 0:02:10.1]} 11. Be2
{[%clk 0:02:37.7]} 11... Ne8 {[%clk 0:02:03.6]} 12. O-O {[%clk 0:02:35.8]} 12...
Qc7 {[%clk 0:02:01.3]} 13. Nxe8 {[%clk 0:02:24.7]} 13... Rxe8 {[%clk 0:02:01.1]}
14. Qd3 {[%clk 0:01:51.3]} 14... b5 {[%clk 0:01:54.3]} 15. Rbd1 {[%clk
0:01:48.9]} 15... Ne5 {[%clk 0:01:53.1]} 16. Qg3 {[%clk 0:01:47.5]} 16... d6
{[%clk 0:01:48.8]} 17. Rd4 {[%clk 0:01:47.2]} 17... Bb7 {[%clk 0:01:38.4]} 18.
Rfd1 {[%clk 0:01:46.3]} 18... Rad8 {[%clk 0:01:38]} 19. h4 {[%clk 0:01:39.8]}
19... Rd7 {[%clk 0:01:36]} 20. a3 {[%clk 0:01:23.4]} 20... Red8 {[%clk
0:01:34.7]} 21. f4 {[%clk 0:01:19.2]} 21... Nc6 {[%clk 0:01:34.2]} 22. R4d2
{[%clk 0:01:18.3]} 22... Na5 {[%clk 0:01:28.6]} 23. f5 {[%clk 0:01:11.2]} 23...
exf5 {[%clk 0:01:09.1]} 24. exf5 {[%clk 0:01:11.1]} 24... f6 {[%clk 0:01:07.2]}
25. Kh2 {[%clk 0:01:01.2]} 25... Nc4 {[%clk 0:01:06.9]} 26. Bxc4+ {[%clk
0:01:00.7]} 26... Qxc4 {[%clk 0:01:06.8]} 27. Nd5 {[%clk 0:00:59.1]} 27... Bxd5
{[%clk 0:01:06.1]} 28. Rxd5 {[%clk 0:00:59.2]} 28... Qxc2 {[%clk 0:01:05.6]} 29.
Rxd6 {[%clk 0:00:59.6]} 29... Qxf5 {[%clk 0:01:01.5]} 30. Rxd7 {[%clk
0:00:54.6]} 30... Rxd7 {[%clk 0:01:00.9]} 31. Qb8+ {[%clk 0:00:54.5]} 31... Kf7
{[%clk 0:01:00.9]} 32. Rxd7+ {[%clk 0:00:50.9]} 32... Qxd7 {[%clk 0:01:00.3]}
33. Qa8 {[%clk 0:00:51.3]} 33... Qd6+ {[%clk 0:00:56.2]} 34. Kh3 {[%clk
0:00:49.5]} 34... h5 {[%clk 0:00:53.8]} 35. Qb7+ {[%clk 0:00:47.3]} 35... Kg6
{[%clk 0:00:46.6]} 36. Qe4+ {[%clk 0:00:46.4]} 36... Kh6 {[%clk 0:00:46.5]} 37.
Qe3+ {[%clk 0:00:44.1]} 37... g5 {[%clk 0:00:46.6]} 38. hxg5+ {[%clk 0:00:39.5]}
38... fxg5 {[%clk 0:00:44.4]} 39. g3 {[%clk 0:00:36.4]} 39... Qf6 {[%clk
0:00:39]} 40. Qa7 {[%clk 0:00:30.9]} 40... g4+ {[%clk 0:00:28.1]} 41. Kh2 {[%clk
0:00:29.2]} 41... Qxb2+ {[%clk 0:00:28.1]} 42. Kh1 {[%clk 0:00:28.8]} 42... Qxa3
{[%clk 0:00:21.4]} 43. Qb6+ {[%clk 0:00:25.7]} 43... Kg5 {[%clk 0:00:21.4]} 44.
Qd8+ {[%clk 0:00:24]} 44... Kf5 {[%clk 0:00:21.5]} 45. Qd7+ {[%clk 0:00:23.6]}
45... Ke4 {[%clk 0:00:20.8]} 46. Qc6+ {[%clk 0:00:19.5]} 46... Ke3 {[%clk
0:00:20.3]} 47. Qh6+ {[%clk 0:00:18.2]} 47... Kf2 {[%clk 0:00:19.5]} 48. Qd2+
{[%clk 0:00:16.2]} 48... Kf3 {[%clk 0:00:17.9]} 49. Qd1+ {[%clk 0:00:15]} 49...
Kxg3 {[%clk 0:00:14.6]} 50. Qe1+ {[%clk 0:00:15.3]} 50... Kh3 {[%clk 0:00:14]}
51. Qf1+ {[%clk 0:00:13.5]} 51... Kh4 {[%clk 0:00:13.9]} 52. Qf6+ {[%clk
0:00:13.6]} 52... Kg3 {[%clk 0:00:14]} 53. Qe5+ {[%clk 0:00:12.8]} 53... Kf2
{[%clk 0:00:13.3]} 54. Qh2+ {[%clk 0:00:08.3]} 54... Ke1 {[%clk 0:00:12.6]} 55.
Qe5+ {[%clk 0:00:05.7]} 55... Kd2 {[%clk 0:00:11.9]} 56. Qg5+ {[%clk 0:00:02.7]}
56... Qe3 {[%clk 0:00:11.5]} 0-1

[Event "Early-Titled-Tuesday-Blitz-January-30-2024"]
[Site "Chess.com"]
[Date "2024.01.30"]
[Round "10"]
[White "ChessLebaneseSalah"]
[Black "Attacks_Hurricane"]
[Result "0-1"]
[WhiteElo "2454"]
[BlackElo "2296"]
[TimeControl "180+1"]
[EndTime "10:02:46 PST"]
[Termination "Attacks_Hurricane won on time"]

1. e4 {[%clk 0:02:56.2]} 1... c5 {[%clk 0:02:59.4]} 2. Nf3 {[%clk 0:02:56.1]}
2... a6 {[%clk 0:02:59.3]} 3. d4 {[%clk 0:02:56.2]} 3... cxd4 {[%clk 0:03:00.2]}
4. Nxd4 {[%clk 0:02:57.1]} 4... Nf6 {[%clk 0:03:00.6]} 5. Nc3 {[%clk 0:02:57.5]}
5... e5 {[%clk 0:03:01]} 6. Nde2 {[%clk 0:02:56.5]} 6... Bc5 {[%clk 0:03:01]} 7.
Ng3 {[%clk 0:02:53.6]} 7... O-O {[%clk 0:03:00.9]} 8. Be2 {[%clk 0:02:53.3]}
8... d6 {[%clk 0:02:56]} 9. Bg5 {[%clk 0:02:52.4]} 9... h6 {[%clk 0:02:53.9]}
10. Bxf6 {[%clk 0:02:47.7]} 10... Qxf6 {[%clk 0:02:54.7]} 11. O-O {[%clk
0:02:48.4]} 11... Be6 {[%clk 0:02:51.8]} 12. Bg4 {[%clk 0:02:47.2]} 12... Nc6
{[%clk 0:02:50.1]} 13. Nd5 {[%clk 0:02:35.3]} 13... Bxd5 {[%clk 0:02:46.5]} 14.
exd5 {[%clk 0:02:35.3]} 14... Ne7 {[%clk 0:02:40.3]} 15. Ne4 {[%clk 0:02:32.7]}
15... Qg6 {[%clk 0:02:30.2]} 16. Nxc5 {[%clk 0:02:32.7]} 16... dxc5 {[%clk
0:02:31.1]} 17. c4 {[%clk 0:02:23.8]} 17... f5 {[%clk 0:02:27.1]} 18. Bh5 {[%clk
0:02:22.3]} 18... Qd6 {[%clk 0:02:26.1]} 19. Qb3 {[%clk 0:02:20.8]} 19... b6
{[%clk 0:02:20.3]} 20. a4 {[%clk 0:02:19.6]} 20... a5 {[%clk 0:01:55.5]} 21.
Rfe1 {[%clk 0:02:16.7]} 21... g6 {[%clk 0:01:40.2]} 22. Qc3 {[%clk 0:01:58.7]}
22... gxh5 {[%clk 0:01:00.4]} 23. Rxe5 {[%clk 0:01:58.3]} 23... Rf6 {[%clk
0:00:13]} 24. Rae1 {[%clk 0:01:56.5]} 24... Kf7 {[%clk 0:00:13.7]} 25. Re6
{[%clk 0:01:37.8]} 25... Rxe6 {[%clk 0:00:12.7]} 26. Rxe6 {[%clk 0:01:20.8]}
26... Qxe6 {[%clk 0:00:13]} 27. dxe6+ {[%clk 0:01:20]} 27... Kxe6 {[%clk
0:00:13.9]} 28. Qe3+ {[%clk 0:01:18.4]} 28... Kf6 {[%clk 0:00:12.7]} 29. Qxh6+
{[%clk 0:01:16.7]} 29... Ng6 {[%clk 0:00:13.3]} 30. Qxh5 {[%clk 0:01:15.2]}
30... Re8 {[%clk 0:00:13.2]} 31. g3 {[%clk 0:01:13.9]} 31... Re1+ {[%clk
0:00:12.5]} 32. Kg2 {[%clk 0:01:13.6]} 32... Re4 {[%clk 0:00:12.6]} 33. Qd1
{[%clk 0:01:07.6]} 33... Rd4 {[%clk 0:00:12]} 34. Qc2 {[%clk 0:01:03]} 34... f4
{[%clk 0:00:10.9]} 35. h4 {[%clk 0:01:01.2]} 35... Ne5 {[%clk 0:00:08.5]} 36. b3
{[%clk 0:00:56.3]} 36... f3+ {[%clk 0:00:07.9]} 37. Kh3 {[%clk 0:00:54.4]} 37...
Rd3 {[%clk 0:00:08]} 38. Qc1 {[%clk 0:00:53.6]} 38... Rd4 {[%clk 0:00:04.4]} 39.
Qh6+ {[%clk 0:00:50.4]} 39... Ke7 {[%clk 0:00:04.4]} 40. Qxb6 {[%clk 0:00:46.2]}
40... Rd1 {[%clk 0:00:03.4]} 41. Qxc5+ {[%clk 0:00:44.9]} 41... Kf6 {[%clk
0:00:03.9]} 42. Qf8+ {[%clk 0:00:19.8]} 42... Ke6 {[%clk 0:00:04]} 43. g4 {[%clk
0:00:15.6]} 43... Rh1+ {[%clk 0:00:03.7]} 44. Kg3 {[%clk 0:00:16.1]} 44... Rg1+
{[%clk 0:00:04.4]} 45. Kh2 {[%clk 0:00:08.5]} 45... Rg2+ {[%clk 0:00:04.4]} 46.
Kh1 {[%clk 0:00:07.5]} 46... Rxg4 {[%clk 0:00:04.9]} 47. Qc8+ {[%clk 0:00:06.6]}
47... Kf6 {[%clk 0:00:04.7]} 48. c5 {[%clk 0:00:05.3]} 48... Rxh4+ {[%clk
0:00:04.8]} 49. Kg1 {[%clk 0:00:05.8]} 49... Rg4+ {[%clk 0:00:05.2]} 50. Kf1
{[%clk 0:00:05]} 50... Rd4 {[%clk 0:00:05.6]} 51. Ke1 {[%clk 0:00:03.9]} 51...
Nd3+ {[%clk 0:00:05.7]} 52. Kf1 {[%clk 0:00:04.1]} 52... Ne5 {[%clk 0:00:05.4]}
53. Qh8+ {[%clk 0:00:04.1]} 53... Kf5 {[%clk 0:00:05.3]} 54. Qh5+ {[%clk
0:00:03.8]} 54... Ke4 {[%clk 0:00:05.7]} 55. Qh4+ {[%clk 0:00:03.5]} 55... Kd5
{[%clk 0:00:06.4]} 56. Qxd4+ {[%clk 0:00:01.4]} 56... Kxd4 {[%clk 0:00:06.7]}
0-1

[Event "Early-Titled-Tuesday-Blitz-January-30-2024"]
[Site "Chess.com"]
[Date "2024.01.30"]
[Round "10"]
[White "rasmussvane"]
[Black "Eagle_2019"]
[Result "0-1"]
[WhiteElo "2961"]
[BlackElo "2835"]
[TimeControl "180+1"]
[EndTime "10:02:47 PST"]
[Termination "Eagle_2019 won on time"]

1. Nf3 {[%clk 0:03:00.9]} 1... d5 {[%clk 0:02:59.7]} 2. g3 {[%clk 0:02:55.3]}
2... c6 {[%clk 0:02:59.3]} 3. Bg2 {[%clk 0:02:55.5]} 3... Bg4 {[%clk 0:02:56.1]}
4. O-O {[%clk 0:02:55.4]} 4... Nd7 {[%clk 0:02:56.2]} 5. h3 {[%clk 0:02:55.6]}
5... Bxf3 {[%clk 0:02:55.6]} 6. Bxf3 {[%clk 0:02:56.5]} 6... e6 {[%clk
0:02:56.1]} 7. d4 {[%clk 0:02:55.5]} 7... Bd6 {[%clk 0:02:55.6]} 8. e4 {[%clk
0:02:54]} 8... Ne7 {[%clk 0:02:53]} 9. Nd2 {[%clk 0:02:52.3]} 9... O-O {[%clk
0:02:52.3]} 10. c3 {[%clk 0:02:52.5]} 10... a5 {[%clk 0:02:50.3]} 11. a4 {[%clk
0:02:51.3]} 11... Bc7 {[%clk 0:02:38.4]} 12. Re1 {[%clk 0:02:49]} 12... h6
{[%clk 0:01:51.4]} 13. Qb3 {[%clk 0:02:42.2]} 13... Rb8 {[%clk 0:01:47.7]} 14.
Kg2 {[%clk 0:02:37.5]} 14... e5 {[%clk 0:01:43.6]} 15. exd5 {[%clk 0:02:26.8]}
15... exd4 {[%clk 0:01:42.7]} 16. cxd4 {[%clk 0:02:26.2]} 16... Nf6 {[%clk
0:01:39.1]} 17. dxc6 {[%clk 0:02:22]} 17... Nxc6 {[%clk 0:01:37.5]} 18. Bxc6
{[%clk 0:02:14.2]} 18... bxc6 {[%clk 0:01:36.6]} 19. Qc4 {[%clk 0:02:14.5]}
19... Qd7 {[%clk 0:01:34.1]} 20. Nf3 {[%clk 0:02:10.2]} 20... Rb4 {[%clk
0:01:33.6]} 21. Qc5 {[%clk 0:02:02]} 21... Bb6 {[%clk 0:01:31.5]} 22. Qc3 {[%clk
0:01:46.9]} 22... Qd5 {[%clk 0:01:25]} 23. Be3 {[%clk 0:01:43.3]} 23... Re8
{[%clk 0:01:16.5]} 24. Qc2 {[%clk 0:01:34.8]} 24... Ne4 {[%clk 0:01:12.7]} 25.
Kh2 {[%clk 0:01:15.7]} 25... Bc7 {[%clk 0:00:56]} 26. Nd2 {[%clk 0:00:58.4]}
26... Nd6 {[%clk 0:00:53.6]} 27. Rac1 {[%clk 0:00:55.3]} 27... Nf5 {[%clk
0:00:48.6]} 28. Nf1 {[%clk 0:00:20.4]} 28... Nh4 {[%clk 0:00:43.5]} 29. Qxc6
{[%clk 0:00:13.3]} 29... Nf3+ {[%clk 0:00:39.8]} 30. Kh1 {[%clk 0:00:12.8]}
30... Qxc6 {[%clk 0:00:37.2]} 31. Rxc6 {[%clk 0:00:13.7]} 31... Nxe1 {[%clk
0:00:37.7]} 32. Rxc7 {[%clk 0:00:14]} 32... Rxb2 {[%clk 0:00:34.4]} 33. Rc5
{[%clk 0:00:14.1]} 33... Nd3 {[%clk 0:00:31.8]} 34. Rf5 {[%clk 0:00:07.4]} 34...
g6 {[%clk 0:00:29.6]} 35. Rf3 {[%clk 0:00:07]} 35... Ra2 {[%clk 0:00:28.5]} 36.
Kg1 {[%clk 0:00:06.6]} 36... Rxa4 {[%clk 0:00:26.6]} 37. Bxh6 {[%clk 0:00:06.8]}
37... Rxd4 {[%clk 0:00:24.7]} 38. Ne3 {[%clk 0:00:06.6]} 38... a4 {[%clk
0:00:23.7]} 39. Ng4 {[%clk 0:00:06.9]} 39... Re1+ {[%clk 0:00:22.2]} 40. Kh2
{[%clk 0:00:06.7]} 40... f5 {[%clk 0:00:21.5]} 41. Ne3 {[%clk 0:00:02]} 41... a3
{[%clk 0:00:18.1]} 42. Nc2 {[%clk 0:00:02.4]} 42... a2 {[%clk 0:00:17.3]} 43.
Nxe1 {[%clk 0:00:01.7]} 43... a1=Q {[%clk 0:00:16.3]} 44. Nxd3 {[%clk
0:00:02.2]} 44... Qd1 {[%clk 0:00:14.8]} 45. Ne5 {[%clk 0:00:02.7]} 45... Re4
{[%clk 0:00:09.5]} 46. Re3 {[%clk 0:00:03.4]} 46... Qf1 {[%clk 0:00:07.8]} 47.
Ng4 {[%clk 0:00:02.2]} 47... Rxe3 {[%clk 0:00:04.7]} 48. Nxe3 {[%clk 0:00:02.7]}
48... Qxf2+ {[%clk 0:00:04.9]} 49. Ng2 {[%clk 0:00:03.3]} 49... Qf3 {[%clk
0:00:04.8]} 50. h4 {[%clk 0:00:03.8]} 50... Qg4 {[%clk 0:00:04.7]} 51. Bf4
{[%clk 0:00:04.3]} 51... Qf3 {[%clk 0:00:04.9]} 52. Ne3 {[%clk 0:00:04.7]} 52...
Qe2+ {[%clk 0:00:05.2]} 53. Ng2 {[%clk 0:00:04.8]} 53... Kf7 {[%clk 0:00:05.9]}
54. Kh3 {[%clk 0:00:05]} 54... Ke6 {[%clk 0:00:06.4]} 55. Kh2 {[%clk 0:00:04.6]}
55... Qf3 {[%clk 0:00:06.6]} 56. Bg5 {[%clk 0:00:04.7]} 56... Kd5 {[%clk
0:00:06.7]} 57. Nf4+ {[%clk 0:00:03.3]} 57... Ke4 {[%clk 0:00:06.9]} 58. Kg1
{[%clk 0:00:02.4]} 58... Qxg3+ {[%clk 0:00:06.8]} 59. Ng2 {[%clk 0:00:02.2]}
59... Kf3 {[%clk 0:00:06.9]} 0-1

[Event "Early-Titled-Tuesday-Blitz-January-30-2024"]
[Site "Chess.com"]
[Date "2024.01.30"]
[Round "10"]
[White "noblerone"]
[Black "jjlai1111"]
[Result "1-0"]
[WhiteElo "2489"]
[BlackElo "2330"]
[TimeControl "180+1"]
[EndTime "10:02:50 PST"]
[Termination "noblerone won by resignation"]

1. e4 {[%clk 0:02:51.7]} 1... c6 {[%clk 0:03:00.1]} 2. Nf3 {[%clk 0:02:45.1]}
2... d5 {[%clk 0:02:59.7]} 3. Nc3 {[%clk 0:02:46]} 3... Bg4 {[%clk 0:02:56.9]}
4. d4 {[%clk 0:02:39]} 4... dxe4 {[%clk 0:02:49.6]} 5. Nxe4 {[%clk 0:02:38.3]}
5... Nf6 {[%clk 0:02:49.5]} 6. Nxf6+ {[%clk 0:02:36.3]} 6... exf6 {[%clk
0:02:50.4]} 7. c3 {[%clk 0:02:13.5]} 7... Bd6 {[%clk 0:02:46.8]} 8. Bd3 {[%clk
0:02:09]} 8... O-O {[%clk 0:02:44]} 9. O-O {[%clk 0:02:03]} 9... Qc7 {[%clk
0:02:42.1]} 10. h3 {[%clk 0:02:02.5]} 10... Bh5 {[%clk 0:02:41.8]} 11. Be3
{[%clk 0:01:58.3]} 11... Nd7 {[%clk 0:02:39.1]} 12. Qc2 {[%clk 0:01:50.2]} 12...
Bg6 {[%clk 0:02:38]} 13. Nh4 {[%clk 0:01:44.2]} 13... c5 {[%clk 0:02:29.7]} 14.
Nf5 {[%clk 0:01:41.2]} 14... cxd4 {[%clk 0:02:24.4]} 15. Bxd4 {[%clk 0:01:36.6]}
15... Bc5 {[%clk 0:02:23.1]} 16. Rad1 {[%clk 0:01:21.7]} 16... Rfd8 {[%clk
0:02:00.2]} 17. Rfe1 {[%clk 0:01:19.2]} 17... Ne5 {[%clk 0:01:32.9]} 18. Be4
{[%clk 0:01:11]} 18... Rab8 {[%clk 0:00:59.7]} 19. a3 {[%clk 0:00:59.2]} 19...
Bxd4 {[%clk 0:00:46.8]} 20. Nxd4 {[%clk 0:00:58.7]} 20... Bxe4 {[%clk
0:00:45.3]} 21. Qxe4 {[%clk 0:00:59.6]} 21... Qc4 {[%clk 0:00:40.7]} 22. Qf5
{[%clk 0:00:33.8]} 22... Rd5 {[%clk 0:00:34.8]} 23. Nc2 {[%clk 0:00:20.3]} 23...
Nd3 {[%clk 0:00:12.1]} 24. Qe4 {[%clk 0:00:15.2]} 24... Qxe4 {[%clk 0:00:11]}
25. Rxe4 {[%clk 0:00:16.1]} 25... Rbd8 {[%clk 0:00:11.4]} 26. Rb1 {[%clk
0:00:13.2]} 26... Ne5 {[%clk 0:00:08.8]} 27. Nd4 {[%clk 0:00:12.8]} 27... Nc6
{[%clk 0:00:06.7]} 28. Nxc6 {[%clk 0:00:12.5]} 28... bxc6 {[%clk 0:00:07.6]} 29.
Rbe1 {[%clk 0:00:12.9]} 29... h6 {[%clk 0:00:07]} 30. Re8+ {[%clk 0:00:12.3]}
30... Kh7 {[%clk 0:00:06.5]} 31. Rxd8 {[%clk 0:00:12.3]} 31... Rxd8 {[%clk
0:00:07.4]} 32. Re7 {[%clk 0:00:12.8]} 32... Rd1+ {[%clk 0:00:07.6]} 33. Kh2
{[%clk 0:00:13.1]} 33... Rd2 {[%clk 0:00:08.5]} 34. Rxf7 {[%clk 0:00:12.5]}
34... Rxf2 {[%clk 0:00:08.4]} 35. Rxa7 {[%clk 0:00:12.8]} 35... Rxb2 {[%clk
0:00:09.1]} 36. Ra6 {[%clk 0:00:12.3]} 36... Rb3 {[%clk 0:00:09.3]} 37. Rxc6
{[%clk 0:00:12.5]} 37... Rxa3 {[%clk 0:00:09.9]} 38. Rc7 {[%clk 0:00:12.8]}
38... Ra2 {[%clk 0:00:09.3]} 39. Kg3 {[%clk 0:00:13.1]} 39... Kg6 {[%clk
0:00:08.5]} 40. Kf3 {[%clk 0:00:13.5]} 40... h5 {[%clk 0:00:07.9]} 41. g3 {[%clk
0:00:13.8]} 41... Kh6 {[%clk 0:00:07.9]} 42. h4 {[%clk 0:00:14.3]} 42... g5
{[%clk 0:00:08.1]} 43. hxg5+ {[%clk 0:00:12.3]} 43... Kxg5 {[%clk 0:00:08.7]}
44. Rc8 {[%clk 0:00:10.5]} 44... Rc2 {[%clk 0:00:08.1]} 45. Ke3 {[%clk
0:00:07.9]} 45... Kg4 {[%clk 0:00:07.8]} 46. Rg8+ {[%clk 0:00:07.4]} 46... Kh3
{[%clk 0:00:07.7]} 47. Kd3 {[%clk 0:00:06.8]} 47... Rc1 {[%clk 0:00:07.1]} 48.
c4 {[%clk 0:00:06.9]} 48... f5 {[%clk 0:00:05.9]} 49. Kd4 {[%clk 0:00:06.3]}
49... h4 {[%clk 0:00:06.1]} 50. gxh4 {[%clk 0:00:05.9]} 50... Kxh4 {[%clk
0:00:06.6]} 51. Rh8+ {[%clk 0:00:03.3]} 51... Kg4 {[%clk 0:00:06.5]} 52. Rg8+
{[%clk 0:00:03.6]} 52... Kf4 {[%clk 0:00:06.7]} 53. Rc8 {[%clk 0:00:03.1]} 53...
Kf3 {[%clk 0:00:06.6]} 54. c5 {[%clk 0:00:03.5]} 54... f4 {[%clk 0:00:06.8]} 55.
c6 {[%clk 0:00:04.1]} 55... Ke2 {[%clk 0:00:04.9]} 56. c7 {[%clk 0:00:04.2]}
56... f3 {[%clk 0:00:05]} 57. Re8+ {[%clk 0:00:04.4]} 57... Kf1 {[%clk
0:00:04.3]} 58. c8=Q {[%clk 0:00:04.7]} 58... Rxc8 {[%clk 0:00:05.2]} 59. Rxc8
{[%clk 0:00:05.4]} 59... f2 {[%clk 0:00:05.9]} 60. Ke3 {[%clk 0:00:05.2]} 60...
Kg1 {[%clk 0:00:06]} 61. Rg8+ {[%clk 0:00:05.4]} 61... Kf1 {[%clk 0:00:04.6]}
62. Rf8 {[%clk 0:00:05.9]} 62... Ke1 {[%clk 0:00:05.2]} 63. Rxf2 {[%clk
0:00:06.5]} 1-0